fUST/lending_fUST_20240322
["ID","MTS","AMOUNT","RATE_DAILY","PERIOD"]
[320027535,1711079439818,-255.60627382,0.00029998,2]
[320027536,1711079439828,-302.50783156,0.00029998,2]
[320027537,1711079439837,-160.91264263,0.00029998,2]
[320027538,1711079439847,-687.57771663,0.00029998,2]
[320027539,1711079439861,-187.95660507,0.00029998,2]
[320027540,1711079439870,-302.19426326,0.00029998,2]
[320027541,1711079439880,-303.58353417,0.00029998,2]
[320027542,1711079439890,-165.97839737,0.00029998,2]
[320027543,1711079439899,-2007.56188344,0.00029998,2]
[320027544,1711079439908,-181.91515451,0.00029998,2]
[320027545,1711079439918,-472.1801886,0.00029998,2]
[320027547,1711079439927,-575.5868675,0.00029998,2]
[320027549,1711079439936,-232.60756961,0.00029998,2]
[320027550,1711079439945,-719.30294431,0.00029998,2]
[320027551,1711079439955,-316.04759516,0.00029998,2]
[320027552,1711079439964,-500.0,0.00029998,2]
[320027553,1711079439973,-500.0,0.00029999,2]
[320027554,1711079439982,-252.77762396,0.00029999,2]
[320027555,1711079439992,-500.0,0.00029999,2]
[320027556,1711079440002,-500.0,0.00029999,2]
[320027557,1711079440011,-500.0,0.00029999,2]
[320027558,1711079440021,-500.0,0.00029999,2]
[320027559,1711079440030,-500.0,0.00029999,2]
[320027560,1711079440040,-500.0,0.00029999,2]
[320027561,1711079440049,-500.0,0.00029999,2]
[320027562,1711079440059,-1579.39534766,0.00029999,2]
[320027563,1711079440069,-476.51140381,0.00029999,2]
[320027564,1711079440079,-240.35470573,0.00029999,2]
[320027565,1711079440089,-456.50212592,0.00029999,2]
[320027566,1711079440098,-222.69768656,0.00029999,2]
[320027567,1711079440112,-245.95231577,0.00029999,2]
[320027568,1711079440121,-303.92728219,0.00029999,2]
[320027569,1711079440131,-155.9196241,0.00029999,2]
[320027570,1711079440140,-1122.36475939,0.00029999,2]
[320027571,1711079440312,-968.40391292,0.00029999,2]
[320027572,1711079440323,-29198.55894183,0.0003,3]
[320027573,1711079440333,-64677.94059446,0.0003,3]
[320027574,1711079440619,-46387.96737282,0.0003,3]
[320027615,1711079446096,-2564.70853159,0.0003,3]
[320027621,1711079805703,3863.0,0.00025587,30]
[320027625,1711080427121,-997.0,0.00026778,2]
[320027626,1711080427143,-236.65480629,0.000272,5]
[320027627,1711080427164,-166.666666,0.00027397,2]
[320027628,1711080427187,-6626.0095414,0.00028035,2]
[320027629,1711080427207,-166.666666,0.00028048,2]
[320027630,1711080427227,-997.0,0.00028187,5]
[320027631,1711080427247,-166.666666,0.00028699,2]
[320027632,1711080427269,-500.0,0.00028768,2]
[320027633,1711080427289,-500.0,0.00028768,2]
[320027634,1711080427310,-136.06660431,0.00028768,2]
[320027635,1711080436385,-363.93339569,0.00028768,2]
[320027636,1711080436407,-500.0,0.00028768,2]
[320027637,1711080436433,-500.0,0.00028768,2]
[320027638,1711080436459,-500.0,0.00028768,2]
[320027639,1711080436480,-500.0,0.00028768,2]
[320027640,1711080436501,-500.0,0.00028768,2]
[320027641,1711080436521,-500.0,0.00028768,2]
[320027642,1711080436544,-500.0,0.00028768,2]
[320027643,1711080436569,-500.0,0.00028768,2]
[320027644,1711080436602,-500.0,0.00028768,2]
[320027645,1711080436628,-500.0,0.00028768,2]
[320027646,1711080436657,-500.0,0.00028768,2]
[320027647,1711080436690,-500.0,0.00028768,2]
[320027648,1711080436716,-500.0,0.00028768,2]
[320027649,1711080436747,-500.0,0.00028768,2]
[320027650,1711080436775,-500.0,0.00028768,2]
[320027651,1711080436801,-500.0,0.00028768,2]
[320027652,1711080436830,-500.0,0.00028768,2]
[320027653,1711080436862,-500.0,0.00028768,2]
[320027654,1711080436889,-500.0,0.00028768,2]
[320027655,1711080436920,-500.0,0.00028768,2]
[320027656,1711080436955,-500.0,0.00028768,2]
[320027657,1711080436980,-474.73729771,0.00028768,2]
[320027658,1711080437007,-500.0,0.00028768,2]
[320027659,1711080437035,-500.0,0.00028768,2]
[320027660,1711080437062,-500.0,0.00028768,2]
[320027661,1711080437086,-500.0,0.00028768,2]
[320027662,1711080437115,-500.0,0.00028768,2]
[320027663,1711080437140,-500.0,0.00028768,2]
[320027664,1711080437172,-500.0,0.00028768,2]
[320027665,1711080437202,-500.0,0.00028768,2]
[320027666,1711080437226,-500.0,0.00028768,2]
[320027667,1711080437252,-500.0,0.00028768,2]
[320027668,1711080437279,-500.0,0.00028768,2]
[320027669,1711080437304,-500.0,0.00028768,2]
[320027670,1711080437329,-500.0,0.00028768,2]
[320027671,1711080437354,-500.0,0.00028768,2]
[320027672,1711080437381,-500.0,0.00028768,2]
[320027673,1711080437407,-500.0,0.00028768,2]
[320027674,1711080437434,-500.0,0.00028768,2]
[320027675,1711080437459,-500.0,0.00028768,2]
[320027676,1711080437484,-500.0,0.00028768,2]
[320027677,1711080437510,-500.0,0.00028768,2]
[320027678,1711080437534,-500.0,0.00028768,2]
[320027679,1711080437560,-500.0,0.00028768,2]
[320027680,1711080437585,-500.0,0.00028768,2]
[320027681,1711080437610,-500.0,0.00028768,2]
[320027682,1711080437635,-500.0,0.00028768,2]
[320027683,1711080437660,-500.0,0.00028768,2]
[320027684,1711080437686,-500.0,0.00028768,2]
[320027685,1711080437712,-500.0,0.00028768,2]
[320027686,1711080437738,-500.0,0.00028768,2]
[320027687,1711080437759,-500.0,0.00028768,2]
[320027688,1711080437779,-500.0,0.00028768,2]
[320027689,1711080437956,-500.0,0.00028768,2]
[320027690,1711080437990,-500.0,0.00028768,2]
[320027691,1711080438011,-500.0,0.00028768,2]
[320027692,1711080438031,-500.0,0.00028768,2]
[320027693,1711080438051,-500.0,0.00028768,2]
[320027694,1711080438072,-500.0,0.00028768,2]
[320027695,1711080438093,-500.0,0.00028768,2]
[320027696,1711080438114,-500.0,0.00028768,2]
[320027697,1711080438135,-500.0,0.00028768,2]
[320027698,1711080438155,-500.0,0.00028768,2]
[320027699,1711080438175,-500.0,0.00028768,2]
[320027700,1711080438201,-500.0,0.00028768,2]
[320027701,1711080438221,-500.0,0.00028768,2]
[320027702,1711080438242,-500.0,0.00028768,2]
[320027703,1711080438262,-500.0,0.00028768,2]
[320027704,1711080438284,-500.0,0.00028768,2]
[320027705,1711080438305,-500.0,0.00028768,2]
[320027706,1711080438326,-500.0,0.00028768,2]
[320027707,1711080438346,-500.0,0.00028768,2]
[320027708,1711080438367,-500.0,0.00028768,2]
[320027709,1711080438388,-500.0,0.00028768,2]
[320027710,1711080438408,-500.0,0.00028768,2]
[320027711,1711080438430,-500.0,0.00028768,2]
[320027712,1711080438453,-500.0,0.00028768,2]
[320027713,1711080438475,-500.0,0.00028768,2]
[320027714,1711080438496,-500.0,0.00028768,2]
[320027715,1711080438517,-500.0,0.00028768,2]
[320027716,1711080438537,-500.0,0.00028768,2]
[320027717,1711080438558,-500.0,0.00028768,2]
[320027718,1711080438578,-500.0,0.00028768,2]
[320027719,1711080438598,-500.0,0.00028768,2]
[320027720,1711080438619,-500.0,0.00028769,2]
[320027721,1711080438639,-24818.77510056,0.0002877,3]
[320027722,1711080438660,-106773.87377836,0.0002877,2]
[320027723,1711080438680,-171.38401956,0.00028824,2]
[320027724,1711080438702,-153.0,0.00029315,2]
[320027725,1711080438722,-153.0,0.00029315,2]
[320027726,1711080438741,-153.0,0.00029315,2]
[320027727,1711080438760,-157.6415406,0.00029315,2]
[320027728,1711080438781,-153.0,0.00029315,2]
[320027729,1711080438799,-153.0,0.00029315,2]
[320027730,1711080438820,-153.0,0.00029315,2]
[320027731,1711080438839,-153.0,0.00029315,2]
[320027732,1711080438861,-153.0,0.00029315,2]
[320027733,1711080438883,-153.0,0.00029315,2]
[320027734,1711080438902,-153.0,0.00029315,2]
[320027735,1711080438923,-153.0,0.00029315,2]
[320027736,1711080438945,-153.0,0.00029315,2]
[320027737,1711080438966,-153.0,0.00029315,2]
[320027738,1711080438985,-153.0,0.00029315,2]
[320027739,1711080439006,-153.0,0.00029315,2]
[320027740,1711080439026,-153.0,0.00029315,2]
[320027741,1711080439046,-437.6233908,0.00029315,2]
[320027742,1711080439066,-153.0,0.00029315,2]
[320027743,1711080439087,-153.0,0.00029315,2]
[320027744,1711080439110,-153.0,0.00029315,2]
[320027745,1711080439130,-153.0,0.00029315,2]
[320027746,1711080439154,-153.0,0.00029315,2]
[320027747,1711080439177,-153.0,0.00029315,2]
[320027748,1711080439201,-153.0,0.00029315,2]
[320027749,1711080439222,-166.666666,0.00029349,2]
[320027750,1711080439242,-153.0,0.00029589,2]
[320027751,1711080439265,-153.0,0.00029589,2]
[320027752,1711080439285,-153.0,0.00029589,2]
[320027753,1711080439306,-153.0,0.00029589,2]
[320027754,1711080439326,-153.0,0.00029589,2]
[320027755,1711080439345,-153.0,0.00029589,2]
[320027756,1711080439366,-153.0,0.00029589,2]
[320027757,1711080439385,-153.0,0.00029589,2]
[320027758,1711080439405,-153.0,0.00029589,2]
[320027759,1711080439425,-153.0,0.00029589,2]
[320027760,1711080439447,-153.0,0.00029589,2]
[320027761,1711080439467,-153.0,0.00029589,2]
[320027762,1711080439486,-153.0,0.00029589,2]
[320027763,1711080439506,-153.0,0.00029589,2]
[320027764,1711080439525,-153.0,0.00029589,2]
[320027765,1711080439545,-156.1021299,0.00029589,2]
[320027766,1711080439565,-153.0,0.00029589,2]
[320027767,1711080439584,-153.0,0.00029589,2]
[320027768,1711080439604,-800.0,0.000296,2]
[320027769,1711080439624,-997.0,0.0002967,5]
[320027770,1711080439645,-753.29276324,0.000299,2]
[320027771,1711080439668,-153.0,0.000299,2]
[320027772,1711080439688,-1000.0,0.000299,2]
[320027773,1711080439708,-3394.48265604,0.000299,2]
[320027774,1711080439730,-225943.75137448,0.0003,3]
[320027775,1711080450167,-236.65480629,0.00028768,5]
[320027776,1711080450190,-153.0,0.00029315,2]
[320027777,1711080450213,-151212.40363318,0.0003,3]
[320027897,1711080639434,-997.0,0.00025585,10]
[320027898,1711080639443,-997.0,0.00025585,10]
[320027899,1711080639452,-997.0,0.00025585,10]
[320027900,1711080639462,-236.65480629,0.00029899,5]
[320027901,1711080639471,-1000.0,0.000299,2]
[320027902,1711080639481,-161.25176797,0.000299,4]
[320027903,1711080639490,-500.0,0.00029999,2]
[320027904,1711080639499,-500.0,0.00029999,2]
[320027905,1711080639508,-500.0,0.00029999,2]
[320027906,1711080639517,-500.0,0.00029999,2]
[320027907,1711080639526,-500.0,0.00029999,2]
[320027908,1711080639536,-500.0,0.00029999,2]
[320027909,1711080639545,-500.0,0.00029999,2]
[320027910,1711080639554,-500.0,0.00029999,2]
[320027911,1711080639563,-500.0,0.00029999,2]
[320027912,1711080639571,-347.47372977,0.00029999,2]
[320027913,1711080639580,-500.0,0.00029999,2]
[320027914,1711080639589,-500.0,0.00029999,2]
[320027915,1711080639597,-17533.50855681,0.0003,3]
[320027916,1711080639609,-3562.45027867,0.0003,3]
[320027917,1711080639618,-6930.28067133,0.0003,3]
[320027958,1711080646301,-151602.05843947,0.0003,3]
[320028025,1711081751130,-2747.23165129,0.00025622,2]
[320028026,1711081751151,-13.48166804,0.00025623,2]
[320028027,1711081753122,-671.98971665,0.00025623,2]
[320028028,1711081753142,-926.23658883,0.00025624,30]
[320028046,1711081832223,-150.0,0.00023524,2]
[320028047,1711081832234,-88.76510644,0.00025624,30]
[320028048,1711081832244,-236.65480629,0.000272,5]
[320028049,1711081832254,-166.666666,0.00027962,2]
[320028050,1711081832265,-166.666666,0.00028724,2]
[320028051,1711081832275,-500.0,0.00029,120]
[320028052,1711081832284,-500.0,0.00029,120]
[320028053,1711081832294,-500.0,0.00029,120]
[320028054,1711081832304,-541.6,0.00029,120]
[320028056,1711081832315,-153.0,0.00029178,2]
[320028058,1711081832325,-153.0,0.00029178,2]
[320028060,1711081832334,-153.0,0.00029178,2]
[320028062,1711081832344,-153.0,0.00029178,2]
[320028064,1711081832354,-153.0,0.00029178,2]
[320028066,1711081832364,-153.0,0.00029178,2]
[320028068,1711081832374,-153.0,0.00029178,2]
[320028070,1711081832383,-153.0,0.00029178,2]
[320028071,1711081832393,-153.0,0.00029278,2]
[320028072,1711081832403,-153.0,0.00029278,2]
[320028073,1711081832412,-153.0,0.00029278,2]
[320028074,1711081832424,-153.0,0.00029315,2]
[320028075,1711081832434,-153.0,0.00029315,2]
[320028076,1711081832444,-153.0,0.00029315,2]
[320028077,1711081832454,-153.0,0.00029315,2]
[320028078,1711081832464,-153.0,0.00029315,2]
[320028079,1711081832473,-153.0,0.00029315,2]
[320028080,1711081832483,-153.0,0.00029315,2]
[320028081,1711081832493,-153.0,0.00029315,2]
[320028083,1711081832502,-153.0,0.00029315,2]
[320028084,1711081832513,-153.0,0.00029315,2]
[320028085,1711081832522,-153.0,0.00029315,2]
[320028086,1711081832533,-153.0,0.00029315,2]
[320028088,1711081832543,-153.0,0.00029315,2]
[320028090,1711081832552,-153.0,0.00029315,2]
[320028092,1711081832562,-153.0,0.00029315,2]
[320028093,1711081832572,-159.2676642,0.00029315,2]
[320028094,1711081832581,-153.0,0.00029315,2]
[320028096,1711081832590,-153.0,0.00029315,2]
[320028097,1711081832600,-153.0,0.00029315,2]
[320028098,1711081832610,-153.0,0.00029315,2]
[320028099,1711081832619,-153.0,0.00029315,2]
[320028100,1711081832629,-153.0,0.00029315,2]
[320028101,1711081832639,-153.0,0.00029315,2]
[320028102,1711081832648,-155.2289826,0.00029315,2]
[320028103,1711081832659,-153.0,0.00029452,2]
[320028104,1711081832668,-153.0,0.00029452,2]
[320028105,1711081832678,-153.0,0.00029452,2]
[320028106,1711081832687,-153.0,0.00029452,2]
[320028107,1711081832697,-153.0,0.00029452,2]
[320028108,1711081832707,-404.2317935,0.00029452,2]
[320028109,1711081832716,-153.0,0.00029452,2]
[320028110,1711081832725,-153.0,0.00029452,2]
[320028111,1711081832735,-166.666666,0.00029487,2]
[320028112,1711081832744,-153.0,0.00029552,2]
[320028113,1711081832755,-153.0,0.00029552,2]
[320028114,1711081832765,-153.0,0.00029552,2]
[320028115,1711081832774,-153.0,0.00029552,2]
[320028116,1711081832783,-800.0,0.000296,2]
[320028117,1711081832793,-201.8047941,0.00029808,2]
[320028118,1711081832802,-201.8047941,0.00029808,2]
[320028119,1711081832811,-201.8047941,0.00029808,2]
[320028120,1711081832820,-201.8047941,0.00029808,2]
[320028121,1711081832829,-201.8047941,0.00029808,2]
[320028122,1711081832839,-201.8047941,0.00029808,2]
[320028123,1711081832848,-201.8047941,0.00029808,2]
[320028124,1711081832857,-201.8047941,0.00029808,2]
[320028125,1711081832867,-403.0368346,0.00029808,2]
[320028126,1711081832876,-201.8047941,0.00029808,2]
[320028127,1711081832886,-161.25176797,0.00029899,4]
[320028128,1711081832895,-561.97535589,0.00029998,2]
[320028129,1711081832904,-497.32069966,0.00029998,2]
[320028130,1711081832914,-611.24805464,0.00029998,2]
[320028131,1711081832923,-2747.07703662,0.00029998,2]
[320028132,1711081832933,-207.06690328,0.00029998,2]
[320028133,1711081832942,-155.13779927,0.00029999,2]
[320028134,1711081832951,-1953.00677637,0.00029999,2]
[320028135,1711081832961,-500.0,0.00029999,2]
[320028136,1711081832970,-500.0,0.00029999,2]
[320028137,1711081832979,-500.0,0.00029999,2]
[320028138,1711081832988,-500.0,0.00029999,2]
[320028139,1711081832998,-500.0,0.00029999,2]
[320028140,1711081833007,-248.96316283,0.00029999,2]
[320028141,1711081833016,-500.0,0.00029999,2]
[320028142,1711081833026,-500.0,0.00029999,2]
[320028143,1711081833035,-500.0,0.00029999,2]
[320028144,1711081833045,-500.0,0.00029999,2]
[320028145,1711081833054,-500.0,0.00029999,2]
[320028146,1711081833063,-500.0,0.00029999,2]
[320028147,1711081833074,-555.04,0.00029999,2]
[320028148,1711081833083,-500.0,0.00029999,2]
[320028149,1711081833093,-500.0,0.00029999,2]
[320028150,1711081833102,-17931.56501015,0.0003,3]
[320028151,1711081833111,-17654.95329854,0.0003,3]
[320028169,1711081838252,-50000.0,0.0003,3]
[320028234,1711081891646,150.81901718,0.00025146,120]
[320028276,1711082945152,-154.81422293,0.00025634,2]
[320028277,1711082945173,-301.68790299,0.00025635,2]
[320028357,1711083038497,-3277.36471572,0.00027081,2]
[320028370,1711083043660,-3348.64482568,0.00027081,2]
[320028371,1711083043670,-236.65480629,0.00027396,5]
[320028372,1711083043682,-166.666666,0.00027397,2]
[320028373,1711083043693,-14992.92391043,0.00028,13]
[320028526,1711084233424,-236.65480629,0.00027634,5]
[320028528,1711084233435,-166.666666,0.00027635,2]
[320028530,1711084233446,-250.0,0.00027853,2]
[320028531,1711084233457,-10804.68482854,0.00028,13]
[320028585,1711084243847,-3223.65853326,0.00028,13]
[320028586,1711084243858,-750.46630651,0.00028,2]
[320028587,1711084243867,-504.64678762,0.00028,2]
[320028588,1711084243876,-1207.353959,0.00028067,2]
[320028589,1711084243885,-208.654261,0.000281,2]
[320028590,1711084243894,-153.0,0.00028256,2]
[320028591,1711084243903,-153.0,0.00028356,2]
[320028592,1711084243913,-153.0,0.00028356,2]
[320028593,1711084243922,-153.0,0.00028356,2]
[320028594,1711084243931,-220.8587831,0.00028356,2]
[320028596,1711084243940,-153.0,0.00028356,2]
[320028598,1711084243950,-153.0,0.00028356,2]
[320028599,1711084243959,-166.666666,0.00028388,2]
[320028600,1711084243968,-153.0,0.000284,2]
[320028601,1711084243977,-153.0,0.00028456,2]
[320028602,1711084243986,-153.0,0.00028456,2]
[320028603,1711084243994,-153.0,0.00028456,2]
[320028604,1711084244003,-153.0,0.00028456,2]
[320028605,1711084244012,-153.0,0.00028456,2]
[320028606,1711084244021,-153.0,0.000287,2]
[320028607,1711084244031,-153.0,0.000287,2]
[320028608,1711084244040,-933.40904211,0.0002877,2]
[320028609,1711084244049,-153.0,0.00028904,2]
[320028610,1711084244058,-153.0,0.00028904,2]
[320028611,1711084244067,-153.0,0.00028904,2]
[320028612,1711084244076,-201.8047941,0.00028986,2]
[320028613,1711084244085,-201.8047941,0.00028986,2]
[320028614,1711084244094,-201.8047941,0.00028986,2]
[320028615,1711084244103,-201.8047941,0.00028986,2]
[320028616,1711084244112,-201.8047941,0.00028986,2]
[320028617,1711084244121,-201.8047941,0.00028986,2]
[320028618,1711084244130,-201.8047941,0.00029078,2]
[320028619,1711084244139,-400.0,0.000291,2]
[320028620,1711084244148,-166.666666,0.00029142,2]
[320028621,1711084244157,-201.8047941,0.00029178,2]
[320028622,1711084244167,-201.8047941,0.00029178,2]
[320028623,1711084244175,-201.8047941,0.00029178,2]
[320028624,1711084244185,-153.0,0.00029178,2]
[320028625,1711084244194,-201.8047941,0.00029178,2]
[320028626,1711084244203,-201.8047941,0.00029178,2]
[320028627,1711084244212,-278.1614662,0.00029278,2]
[320028727,1711085350180,-2034.607004,0.00024789,2]
[320028728,1711085350201,-121.68640163,0.00026886,2]
[320028729,1711085350228,-56.60565873,0.00026886,2]
[320028730,1711085365036,150.0,0.00022689,2]
[320028748,1711085431870,-150.0,0.00027689,2]
[320028749,1711085431879,-166.666666,0.00027991,2]
[320028750,1711085431889,-603.676979,0.00028463,2]
[320028751,1711085431898,-166.666666,0.00028754,2]
[320028752,1711085431908,-201.8047941,0.000288,2]
[320028753,1711085431917,-201.8047941,0.000288,2]
[320028754,1711085431927,-403.0368346,0.000288,2]
[320028755,1711085431936,-201.8047941,0.000288,2]
[320028756,1711085431946,-201.8047941,0.000288,2]
[320028757,1711085431955,-201.8047941,0.000288,2]
[320028758,1711085431965,-201.8047941,0.000288,2]
[320028759,1711085431975,-201.8047941,0.000288,2]
[320028760,1711085431985,-201.8047941,0.000288,2]
[320028761,1711085431994,-153.0,0.000288,2]
[320028762,1711085432003,-201.8047941,0.000288,2]
[320028763,1711085432012,-403.6095882,0.00029078,2]
[320028764,1711085432022,-201.8047941,0.00029078,2]
[320028765,1711085432031,-201.8047941,0.000291,2]
[320028766,1711085432041,-201.8047941,0.000291,2]
[320028767,1711085432051,-750.46630651,0.00029278,2]
[320028768,1711085432061,-201.8047941,0.000293,2]
[320028769,1711085432071,-201.8047941,0.000293,2]
[320028770,1711085432080,-201.8047941,0.000293,2]
[320028771,1711085432089,-201.8047941,0.000293,2]
[320028772,1711085432099,-201.8047941,0.000293,2]
[320028773,1711085432109,-201.8047941,0.000293,2]
[320028774,1711085432119,-201.8047941,0.000293,2]
[320028775,1711085432129,-201.8047941,0.000293,2]
[320028776,1711085432139,-201.8047941,0.000293,2]
[320028777,1711085432149,-201.8047941,0.000293,2]
[320028778,1711085432159,-201.8047941,0.000293,2]
[320028779,1711085432169,-205.6489967,0.000293,2]
[320028780,1711085432178,-197.2309517,0.00029315,2]
[320028781,1711085432188,-306.2103796,0.00029315,2]
[320028782,1711085432197,-153.0,0.00029315,2]
[320028783,1711085432206,-201.8047941,0.000294,2]
[320028784,1711085432216,-201.8047941,0.000294,2]
[320028785,1711085432225,-201.8047941,0.000294,2]
[320028786,1711085432235,-201.8047941,0.000294,2]
[320028787,1711085432244,-1956.27,0.000295,2]
[320028788,1711085432253,-166.666666,0.00029517,2]
[320028789,1711085432262,-2000.0,0.000296,2]
[320028790,1711085432271,-2000.0,0.000298,2]
[320028791,1711085432281,-153.0,0.00029808,2]
[320028792,1711085432290,-150.78889555,0.0002994,2]
[320028793,1711085432300,-7752.82337168,0.00029997,2]
[320028794,1711085432310,-417.20154934,0.00029998,2]
[320028795,1711085432319,-324.00931523,0.00029998,2]
[320028796,1711085432329,-255.19689506,0.00029998,2]
[320028797,1711085432340,-456.50212592,0.00029998,2]
[320028798,1711085432351,-313.80163422,0.00029998,5]
[320028799,1711085432359,-671.98971665,0.00029998,2]
[320028800,1711085432369,-500.0,0.00029999,2]
[320028801,1711085432378,-500.0,0.00029999,2]
[320028802,1711085432388,-500.0,0.00029999,2]
[320028803,1711085432398,-500.0,0.00029999,2]
[320028804,1711085432407,-168.62324375,0.00029999,2]
[320028805,1711085432416,-500.0,0.00029999,2]
[320028806,1711085432428,-636.06660431,0.00029999,2]
[320028807,1711085432437,-519.05322945,0.00029999,2]
[320028808,1711085432447,-500.0,0.00029999,2]
[320028809,1711085432457,-169.98849354,0.00029999,2]
[320028810,1711085432466,-203.57287567,0.00029999,2]
[320028811,1711085432475,-500.0,0.00029999,2]
[320028812,1711085432484,-15241.83025863,0.0003,3]
[320028813,1711085432493,-32287.23796577,0.0003,3]
[320028820,1711085437915,-1089.17436889,0.0003,3]
[320028821,1711085437928,-1134.14764412,0.0003,3]
[320028867,1711085703757,150.80395486,0.0002489,120]
[320028896,1711086438149,-150.78889555,0.00024282,30]
[320028897,1711086438170,-1447.43740993,0.00024444,7]
[320028898,1711086453122,-1372.78968893,0.00024444,7]
[320028899,1711086547106,-8283.19951834,0.00024444,7]
[320028900,1711086549121,-6095.59326726,0.00024444,7]
[320028901,1711086556157,-264.16427645,0.00024444,7]
[320028902,1711086556180,-150.78889555,0.00024778,7]
[320028903,1711086556204,-150.78889555,0.00025283,4]
[320028904,1711086556226,-130.04482558,0.00025799,2]
[320028990,1711086638021,-20.74406997,0.00025799,2]
[320028991,1711086638032,-166.666666,0.00027717,2]
[320028992,1711086638044,-301.838489,0.00027924,2]
[320028993,1711086638055,-166.666666,0.00028472,2]
[320028994,1711086638064,-150.78889555,0.00028666,2]
[320028995,1711086638075,-250.14068304,0.00028666,2]
[320028996,1711086638084,-301.57779109,0.00029148,4]
[320028997,1711086638094,-166.666666,0.00029228,2]
[320028998,1711086638103,-287.770457,0.00029355,2]
[320028999,1711086638115,-289.581439,0.00029355,2]
[320029000,1711086638124,-2000.0,0.000295,2]
[320029001,1711086638133,-2000.0,0.000296,2]
[320029002,1711086638143,-603.15558218,0.00029638,7]
[320029003,1711086638152,-229.97135585,0.00029698,4]
[320029004,1711086638162,-2000.0,0.000297,2]
[320029005,1711086638171,-2000.0,0.000298,2]
[320029006,1711086638180,-2000.0,0.000299,2]
[320029007,1711086638191,-166.666666,0.00029984,2]
[320029008,1711086638200,-1953.00677637,0.00029998,2]
[320029009,1711086638210,-301.68790299,0.00029998,2]
[320029010,1711086638219,-154.81422293,0.00029998,2]
[320029011,1711086638229,-500.0,0.00029999,2]
[320029012,1711086638239,-500.0,0.00029999,2]
[320029013,1711086638249,-446.76568267,0.00029999,2]
[320029014,1711086638259,-500.0,0.00029999,2]
[320029015,1711086638269,-500.0,0.00029999,2]
[320029016,1711086638278,-500.0,0.00029999,2]
[320029017,1711086638287,-500.0,0.00029999,2]
[320029018,1711086638297,-500.0,0.00029999,2]
[320029019,1711086638306,-29916.90495891,0.0003,3]
[320029020,1711086638428,-1235.21,0.0003,3]
[320029027,1711086640307,-5883.03238597,0.0003,3]
[320029028,1711086640317,-400.0,0.0003,2]
[320029029,1711086640326,-800.0,0.0003,2]
[320029030,1711086640335,-800.0,0.0003,2]
[320029031,1711086640344,-1000.0,0.0003,2]
[320029032,1711086640353,-167.70555975,0.0003,2]
[320029033,1711086640362,-7427.47018549,0.0003,2]
[320029034,1711086640372,-3000.0,0.0003,30]
[320029035,1711086640381,-159.49,0.0003,2]
[320029036,1711086640390,-1075.60314043,0.0003,31]
[320029037,1711086640399,-1008.30405865,0.0003,4]
[320029038,1711086640408,-641.58882978,0.0003,4]
[320029039,1711086640417,-207.0,0.0003,2]
[320029040,1711086640426,-151.0,0.0003,2]
[320029041,1711086640436,-171.2784482,0.00030031,4]
[320029042,1711086640445,-15645.29047136,0.00030036,3]
[320029043,1711086640454,-1000.0,0.00030036,2]
[320029044,1711086640463,-27357.18561482,0.00030036,2]
[320029045,1711086640472,-151.0,0.00030036,2]
[320029046,1711086640481,-151.0,0.00030036,2]
[320029047,1711086640490,-340.93064153,0.00030054,2]